fUST/lending_fUST_20240128
["ID","MTS","AMOUNT","RATE_DAILY","PERIOD"]
[312861341,1706374239772,-500.0,0.00029999,2]
[312861344,1706374239781,-500.0,0.00029999,2]
[312861345,1706374239790,-500.0,0.00029999,2]
[312861348,1706374239801,-500.0,0.00029999,2]
[312861349,1706374239810,-500.0,0.00029999,2]
[312861352,1706374239820,-500.0,0.00029999,2]
[312861354,1706374239829,-500.0,0.00029999,2]
[312861356,1706374239839,-500.0,0.00029999,2]
[312861358,1706374239848,-500.0,0.00029999,2]
[312861360,1706374239857,-500.0,0.00029999,2]
[312861362,1706374239866,-500.0,0.00029999,2]
[312861364,1706374239875,-500.0,0.00029999,2]
[312861366,1706374239884,-500.0,0.00029999,2]
[312861368,1706374239893,-535.1336109,0.00029999,2]
[312861370,1706374239902,-190.08273826,0.0003,3]
[312861372,1706374239911,-270.97785001,0.0003,2]
[312861374,1706374239920,-5726.50858255,0.0003,2]
[312861376,1706374239929,-244.44828906,0.0003,4]
[312861378,1706374239938,-146331.23431988,0.0003,4]
[312861380,1706374239947,-195.76432188,0.0003,2]
[312861382,1706374239956,-155.01860223,0.0003,4]
[312861384,1706374239965,-689.09430435,0.0003,4]
[312861385,1706374239974,-155.01860223,0.0003,4]
[312861387,1706374239985,-155.01860223,0.0003,4]
[312861390,1706374239995,-157.99274934,0.0003,4]
[312861391,1706374240004,-200.82122795,0.0003,4]
[312861394,1706374240014,-373.0,0.0003,2]
[312861396,1706374240023,-56845.33629727,0.00030007,4]
[312861397,1706374240033,-620.63562915,0.00030076,2]
[312861399,1706374240042,-307.5089909,0.00030137,2]
[312861402,1706374240053,-153.0,0.00030137,2]
[312861404,1706374240065,-306.0,0.00030137,2]
[312861405,1706374240084,-153.0,0.00030137,2]
[312861408,1706374240106,-153.0,0.00030137,2]
[312861410,1706374240115,-153.0,0.00030137,2]
[312861412,1706374240124,-153.0,0.00030137,2]
[312861413,1706374240133,-153.0,0.00030137,2]
[312861416,1706374240143,-199.4415769,0.00030137,2]
[312861417,1706374240152,-164.486678,0.00030137,2]
[312861419,1706374240160,-158.508265,0.00030137,2]
[312861421,1706374240168,-346.061529,0.00030137,2]
[312861423,1706374240178,-161.43393847,0.00031,4]
[312861425,1706374240187,-1175.45652108,0.00031,7]
[312861427,1706374240197,-687.5667328,0.00031,4]
[312861429,1706374240206,-300.0,0.00031,4]
[312861431,1706374240216,-2803.02756458,0.00031,4]
[312861433,1706374240225,-1027.50463707,0.00031,2]
[312861435,1706374240235,-649.86107879,0.00031,4]
[312861437,1706374240244,-408.1017874,0.00031,4]
[312861439,1706374240253,-4292.55674097,0.00031,4]
[312861441,1706374240262,-346.061529,0.00031115,2]
[312861443,1706374240271,-158.508265,0.00031133,2]
[312861445,1706374240281,-620.03178146,0.0003158,2]
[312861447,1706374240290,-194.69458042,0.00031898,2]
[312861449,1706374240300,-155.01860223,0.00032,4]
[312861451,1706374240309,-155.01860223,0.00032,4]
[312861454,1706374240319,-1000.0,0.00032,32]
[312861456,1706374240328,-346.061529,0.00032094,2]
[312861458,1706374240338,-158.508265,0.0003213,2]
[312861459,1706374240347,-228.50754628,0.00033,2]
[312861461,1706374240357,-22355.32655684,0.00033,5]
[312861464,1706374240366,-1000.0,0.00033,33]
[312861473,1706374240444,-154.0,0.00033,2]
[312861475,1706374240453,-373.0,0.00033,2]
[312861477,1706374240463,-346.061529,0.00033072,2]
[312861479,1706374240471,-158.508265,0.00033126,2]
[312861481,1706374240482,-620.00158907,0.00033159,2]
[312861483,1706374240492,-82714.7913079,0.0003342,2]
[312861485,1706374240501,-1000.0,0.00034,34]
[312861487,1706374240510,-155.0,0.00034,2]
[312861489,1706374240518,-346.061529,0.00034051,2]
[312861491,1706374240527,-158.508265,0.00034122,2]
[312861493,1706374240536,-154.0,0.00034521,2]
[312861495,1706374240545,-151.01661183,0.00034679,2]
[312861497,1706374240554,-250.51843703,0.00034679,2]
[312861499,1706374240564,-300.0,0.000347,17]
[312861501,1706374240573,-620.00007945,0.00034817,2]
[312861503,1706374240582,-3238.32135489,0.00034999,4]
[312861505,1706374240591,-178.68787954,0.00034999,4]
[312861507,1706374240599,-2042.12183394,0.00034999,4]
[312861509,1706374240608,-155.25655737,0.00034999,4]
[312861511,1706374240617,-18498.5,0.00034999,4]
[312861513,1706374240627,-592.61828384,0.00035,2]
[312861515,1706374240635,-64779.66661041,0.00035,15]
[312861517,1706374240645,-155.01860223,0.00035,4]
[312861519,1706374240653,-13399.53656021,0.00035,2]
[312861521,1706374240663,-2088.95008583,0.00035,4]
[312861523,1706374240672,-477.27943896,0.00035,4]
[312861525,1706374240681,-155.64739044,0.00035,4]
[312861527,1706374240690,-1000.0,0.00035,35]
[312861529,1706374240699,-200.0,0.00035,4]
[312861531,1706374240707,-346.061529,0.00035029,2]
[312861533,1706374240717,-158.508265,0.00035118,2]
[312861535,1706374240730,-19711.78619942,0.00035184,4]
[312861537,1706374240740,-302.03322365,0.00035262,4]
[312861539,1706374240749,-155.0,0.0003537,2]
[312861541,1706374240757,-3006.64575976,0.0003557,2]
[312861543,1706374240767,-175.0,0.0003557,2]
[312861545,1706374240777,-360.76077738,0.0003557,2]
[312861547,1706374240786,-204.48867864,0.0003557,2]
[312861549,1706374240796,-552.68745643,0.0003557,2]
[312861550,1706374240805,-259.64381946,0.0003557,2]
[312861552,1706374240814,-1453.42859,0.00035616,120]
[312861555,1706374240824,-150.321,0.00035792,2]
[312861557,1706374240833,-1333.48001614,0.000358,6]
[312861559,1706374240842,-2034.6,0.000358,2]
[312861560,1706374240851,-2000.0,0.000358,2]
[312861562,1706374240860,-2000.0,0.000358,2]
[312861564,1706374240870,-604.06644731,0.00035854,7]
[312861567,1706374240879,-647.266018,0.0003592,3]
[312861569,1706374240888,-500.0,0.0003594,3]
[312861570,1706374240899,-500.0,0.0003596,3]
[312861573,1706374240909,-500.0,0.0003598,3]
[312861574,1706374240918,-1275.47963777,0.00035989,2]
[312861576,1706374240927,-151.0,0.00035999,2]
[312861579,1706374240937,-176.34,0.00035999,2]
[312861581,1706374240946,-176.34,0.00035999,2]
[312861583,1706374240955,-176.34,0.00035999,2]
[312861585,1706374240964,-176.34,0.00035999,2]
[312861587,1706374240973,-176.34,0.00035999,2]
[312861589,1706374240984,-176.34,0.00035999,2]
[312861591,1706374240993,-176.34,0.00035999,2]
[312861592,1706374241003,-176.34,0.00035999,2]
[312861595,1706374241012,-176.34,0.00035999,2]
[312861596,1706374241023,-94179.70000244,0.00036,7]
[312861598,1706374241032,-1000.0,0.00036,2]
[312861601,1706374241041,-1000.0,0.00036,2]
[312861603,1706374241051,-104827.48867394,0.00036,7]
[312861617,1706374241175,-10202.84952288,0.00036,7]
[312861800,1706374245950,-453.1775686,0.0001511,2]
[312861801,1706374245960,-997.69092193,0.0001511,2]
[312861802,1706374245969,-155.07613607,0.00031999,4]
[312861803,1706374245978,-1369.47800467,0.00031999,4]
[312861804,1706374245989,-591.46656872,0.00035999,2]
[312861805,1706374246001,-2091.7,0.00035999,2]
[312861829,1706374424237,155.01860223,0.00021999,4]
[312862294,1706374644165,3093.0,0.00031,15]
[312862448,1706375433246,-155.01860223,0.00014265,2]
[312862450,1706375433256,-617.20703081,0.00014266,2]
[312862451,1706375433265,-1254.50882971,0.00014267,2]
[312862453,1706375433277,-608.60582345,0.00014268,2]
[312862455,1706375433287,-997.69092193,0.00014269,2]
[312862457,1706375433297,-500.0,0.0001427,2]
[312862459,1706375433308,-50.06879187,0.00014272,2]
[312862519,1706375438077,-4056.2720049,0.00014272,2]
[312862520,1706375438087,-220.1347374,0.00014294,2]
[312862521,1706375438096,-595.45090393,0.00014928,2]
[312862522,1706375438105,-588.69915361,0.00014929,2]
[312862523,1706375438114,-3503.95214161,0.00014929,2]
[312862524,1706375438123,-24900.0,0.0001493,2]
[312862525,1706375438131,-245.57627736,0.00015794,2]
[312862526,1706375438141,-3884.00446648,0.00015891,2]
[312862527,1706375438151,-903.29302173,0.00015897,2]
[312862528,1706375438160,-194.69458043,0.000159,2]
[312862529,1706375438169,-1513.35450876,0.00015996,2]
[312862530,1706375438178,-155.02325349,0.00015996,2]
[312862531,1706375438189,-295.12770733,0.00015996,2]
[312862532,1706375438198,-2348.08731336,0.00015997,2]
[312862533,1706375438207,-155.17369071,0.00015997,2]
[312862534,1706375438218,-345.05626457,0.00015997,2]
[312862535,1706375438227,-1239.0,0.00015997,2]
[312862536,1706375438236,-555.44587219,0.00015997,2]
[312862537,1706375438245,-528.13445908,0.00015997,2]
[312862538,1706375438254,-155.40093284,0.00015997,2]
[312862539,1706375438263,-209.61775108,0.00015997,2]
[312862540,1706375438272,-1994.28554433,0.00015997,2]
[312862541,1706375438282,-194.07706277,0.00015997,2]
[312862542,1706375438291,-1056.05635596,0.00015997,2]
[312862543,1706375438300,-155.17713693,0.00015997,2]
[312862544,1706375438309,-155.07502483,0.00015997,2]
[312862545,1706375438319,-155.14456294,0.00015998,2]
[312862546,1706375438327,-155.07019684,0.00015998,2]
[312862547,1706375438336,-157.64914444,0.00015998,2]
[312862548,1706375438345,-263.72063021,0.00015998,2]
[312862549,1706375438355,-164.52095892,0.00015998,2]
[312862550,1706375438363,-166.05500787,0.00015998,2]
[312862551,1706375438373,-20606.61019362,0.00015998,2]
[312862552,1706375438382,-71547.11170681,0.00015999,2]
[312862553,1706375438390,-8429.52788628,0.00016,2]
[312862554,1706375438400,-272.79145972,0.000165,2]
[312862555,1706375438409,-1583.7528565,0.00019,2]
[312862556,1706375438418,-166.376744,0.00019178,2]
[312862557,1706375438427,-194.69458042,0.00019395,2]
[312862558,1706375438436,-286.91730726,0.00019488,2]
[312862559,1706375438445,-329.19745495,0.00019594,2]
[312862560,1706375438454,-155.15395878,0.00019595,2]
[312862561,1706375438463,-2710.54181066,0.00019595,2]
[312862562,1706375438472,-197.7452185,0.00019596,2]
[312862563,1706375438482,-10053.76052391,0.00019596,2]
[312862564,1706375438492,-16470.81066049,0.00019596,2]
[312862565,1706375438580,-793.45957236,0.00019596,2]
[312862566,1706375438590,-194.68732422,0.00019596,2]
[312862567,1706375438600,-563.51234938,0.00019596,2]
[312862568,1706375438609,-429.58433863,0.00019596,2]
[312862569,1706375438618,-581.42890001,0.00019596,2]
[312862570,1706375438627,-283.65055231,0.00019596,2]
[312862571,1706375438636,-155.61679895,0.00019597,2]
[312862572,1706375438645,-155.01860223,0.0002,2]
[312862573,1706375438654,-679.3029243,0.0002,2]
[312862574,1706375438663,-1199.09633829,0.0002,2]
[312862575,1706375438672,-155.01860223,0.0002,2]
[312862576,1706375438681,-155.01860223,0.0002,2]
[312862577,1706375438690,-259.07239837,0.0002,2]
[312862578,1706375438700,-244.16390159,0.0002,2]
[312862579,1706375438709,-200.0,0.0002,2]
[312862580,1706375438718,-156.28562946,0.0002,2]
[312862581,1706375438728,-168.99927393,0.0002,2]
[312862582,1706375438737,-233.19482387,0.00021,2]
[312862583,1706375438747,-30977.36086633,0.00021,2]
[312862584,1706375438756,-194.51343232,0.00021,2]
[312862585,1706375438765,-9869.12528061,0.00021,2]
[312862586,1706375438775,-500.0,0.00021917,2]
[312862587,1706375438785,-500.0,0.00021917,2]
[312862588,1706375438794,-500.0,0.00021917,2]
[312862589,1706375438803,-500.0,0.00021917,2]
[312862590,1706375438812,-500.0,0.00021917,2]
[312862591,1706375438821,-500.0,0.00021917,2]
[312862592,1706375438830,-619.87643609,0.00021917,2]
[312862593,1706375438839,-166.666666,0.00021918,2]
[312862594,1706375438848,-2036.12411825,0.00022,2]
[312862595,1706375438857,-426.38170713,0.00022,2]
[312862596,1706375438866,-327.61566675,0.00022,2]
[312862597,1706375438875,-3971.98419525,0.00022,2]
[312862598,1706375438884,-164.09330822,0.00022,2]
[312862599,1706375438893,-3616.77401361,0.00022,2]
[312862600,1706375438902,-166.666666,0.00022431,2]
[312862601,1706375438911,-194.69458042,0.00022889,2]
[312862602,1706375438920,-166.666666,0.00022944,2]
[312862603,1706375438930,-9947.92180076,0.00023,2]
[312862604,1706375438939,-1416.67721386,0.00023,2]
[312862605,1706375438948,-166.666666,0.00023456,2]
[312862606,1706375438957,-166.666666,0.00023969,2]
[312862607,1706375438966,-4017.99473219,0.00024,2]
[312862608,1706375438976,-166.666666,0.00024482,2]
[312862609,1706375438985,-380.0,0.00024658,2]
[312862610,1706375438994,-498.88477678,0.0002496,5]
[312862611,1706375439003,-1500.90139842,0.00025,2]
[312862612,1706375439012,-680.67452781,0.00025,2]
[312862613,1706375439022,-1828.18039739,0.00025,2]
[312862614,1706375439032,-1206.92115646,0.00025,2]
[312862615,1706375439041,-1003.22663842,0.00025,2]
[312862616,1706375439051,-4727.98807036,0.00025,2]
[312862617,1706375439060,-7649.9786433,0.00025,2]
[312862618,1706375439069,-260.27250039,0.00025,2]
[312862619,1706375439078,-851.06760342,0.00025,2]
[312862620,1706375439087,-2908.5811352,0.00025297,2]
[312862621,1706375439096,-194.9590979,0.00025479,2]
[312862622,1706375439105,-241.485214,0.00026,2]
[312862623,1706375439114,-194.69458042,0.00026384,2]
[312862624,1706375439123,-178.68787954,0.00026992,2]
[312862625,1706375439132,-2042.12183394,0.00026992,2]
[312862626,1706375439144,-155.25655737,0.00026992,2]
[312862627,1706375439154,-3238.32135489,0.00026992,2]
[312862628,1706375439163,-290.6944281,0.00027,2]
[312862629,1706375439172,-874.25165787,0.0002728,2]
[312862630,1706375439181,-11837.86,0.00027397,3]
[312862631,1706375439191,-22109.46,0.00027397,3]
[312862632,1706375439200,-18424.55,0.00027397,3]
[312862633,1706375439209,-15353.79,0.00027397,3]
[312862634,1706375439220,-1901.44944296,0.000275,2]
[312862635,1706375439230,-200.93387921,0.000279,2]
[312862636,1706375439240,-200.93387921,0.000279,2]
[312862637,1706375439250,-556.2457431,0.00028,2]
[312862638,1706375439258,-159.42971699,0.0002828,2]
[312862639,1706375439269,-632.71258289,0.00028644,2]
[312862640,1706375439279,-155.0,0.00028899,2]
[312862641,1706375439289,-19711.78619942,0.00028995,2]
[312862642,1706375439298,-310.03720446,0.00029,2]
[312862643,1706375439307,-1000.0,0.00029,2]
[312862644,1706375439317,-1933.42796518,0.00029,2]
[312862645,1706375439326,-153.0,0.00029315,2]
[312862646,1706375439335,-154.5089909,0.00029315,2]
[312862647,1706375439344,-199.3339408,0.00029315,2]
[312862648,1706375439352,-199.4415769,0.00029315,2]
[312862649,1706375439361,-153.0,0.00029315,2]
[312862650,1706375439370,-153.0,0.00029315,2]
[312862651,1706375439380,-9132.4701419,0.0002945,4]
[312862652,1706375439389,-194.69458042,0.00029878,2]
[312862653,1706375439398,-500.0,0.00029899,2]
[312862654,1706375439408,-190.40084948,0.00029899,2]
[312862655,1706375439418,-500.0,0.00029899,2]
[312862656,1706375439427,-500.0,0.00029899,2]
[312862657,1706375439436,-500.0,0.00029899,2]
[312862658,1706375439446,-500.0,0.00029899,2]
[312862659,1706375439455,-500.0,0.00029899,2]
[312862660,1706375439466,-500.0,0.00029899,2]
[312862661,1706375439475,-500.0,0.00029899,2]
[312862662,1706375439485,-500.0,0.00029899,2]
[312862663,1706375439494,-500.0,0.00029899,2]
[312862664,1706375439504,-500.0,0.00029899,2]
[312862665,1706375439514,-500.0,0.00029899,2]
[312862666,1706375439523,-500.0,0.00029899,2]
[312862667,1706375439533,-500.0,0.00029899,2]
[312862668,1706375439542,-500.0,0.00029899,2]
[312862669,1706375439551,-344.33734165,0.00029899,2]
[312862670,1706375439561,-500.0,0.00029899,2]
[312862671,1706375439570,-170.56154962,0.00029899,2]
[312862672,1706375439579,-500.0,0.00029899,2]
[312862673,1706375439589,-500.0,0.00029899,2]
[312862674,1706375439598,-500.0,0.00029899,2]
[312862675,1706375439607,-397.4961264,0.00029899,2]
[312862676,1706375439616,-500.0,0.00029899,2]
[312862677,1706375439625,-500.0,0.00029899,2]
[312862678,1706375439635,-500.0,0.00029899,2]
[312862679,1706375439644,-500.0,0.00029899,2]
[312862680,1706375439653,-354.08400693,0.00029899,2]
[312862681,1706375439664,-500.0,0.00029899,2]
[312862682,1706375439673,-500.0,0.00029899,2]
[312862683,1706375439682,-500.0,0.00029899,2]
[312862684,1706375439691,-162.74181451,0.00029899,2]
[312862685,1706375439700,-500.0,0.00029899,2]
[312862686,1706375439709,-500.0,0.00029899,2]
[312862687,1706375439718,-500.0,0.00029899,2]
[312862688,1706375439728,-500.0,0.00029899,2]
[312862689,1706375439737,-500.0,0.00029899,2]
[312862690,1706375439746,-500.0,0.00029899,2]
[312862691,1706375439755,-500.0,0.00029899,2]
[312862692,1706375439764,-500.0,0.00029899,2]
[312862693,1706375439773,-500.0,0.00029899,2]
[312862694,1706375439783,-500.0,0.00029899,2]
[312862695,1706375439792,-500.0,0.00029899,2]
[312862696,1706375439801,-500.0,0.00029899,2]
[312862697,1706375439809,-500.0,0.00029899,2]
[312862698,1706375439818,-500.0,0.00029899,2]
[312862699,1706375439826,-500.0,0.00029899,2]
[312862700,1706375439835,-500.0,0.00029899,2]
[312862701,1706375439844,-500.0,0.00029899,2]
[312862702,1706375439853,-500.0,0.00029899,2]
[312862703,1706375439863,-500.0,0.00029899,2]
[312862704,1706375439872,-500.0,0.00029899,2]
[312862705,1706375439881,-500.0,0.00029899,2]
[312862706,1706375439890,-500.0,0.00029899,2]
[312862707,1706375439899,-500.0,0.00029899,2]
[312862708,1706375439908,-500.0,0.00029899,2]
[312862709,1706375439975,-500.0,0.00029899,2]
[312862710,1706375439993,-500.0,0.00029899,2]
[312862711,1706375440002,-500.0,0.00029899,2]
[312862712,1706375440012,-500.0,0.00029899,2]
[312862713,1706375440022,-500.0,0.00029899,2]
[312862714,1706375440030,-450.0,0.00029899,2]
[312862715,1706375440039,-500.0,0.00029899,2]
[312862716,1706375440048,-500.0,0.00029899,2]
[312862717,1706375440057,-500.0,0.00029899,2]
[312862718,1706375440066,-500.0,0.00029899,2]
[312862719,1706375440075,-500.0,0.00029899,2]
[312862720,1706375440084,-500.0,0.00029899,2]
[312862721,1706375440093,-500.0,0.00029899,2]
[312862722,1706375440102,-500.0,0.00029899,2]
[312862723,1706375440119,-500.0,0.00029899,2]
[312862724,1706375440132,-500.0,0.00029899,2]
[312862725,1706375440143,-500.0,0.00029899,2]
[312862726,1706375440153,-500.0,0.00029899,2]
[312862728,1706375440163,-500.0,0.00029899,2]
[312862729,1706375440173,-500.0,0.00029899,2]
[312862731,1706375440182,-500.0,0.00029899,2]
[312862732,1706375440192,-500.0,0.00029899,2]
[312862735,1706375440202,-500.0,0.00029899,2]
[312862737,1706375440212,-500.0,0.00029899,2]
[312862740,1706375440223,-359.58224829,0.00029899,2]
[312862741,1706375440235,-500.0,0.00029899,2]
[312862742,1706375440247,-500.0,0.00029899,2]
[312862743,1706375440257,-500.0,0.00029899,2]
[312862744,1706375440266,-500.0,0.00029899,2]
[312862746,1706375440276,-500.0,0.00029899,2]
[312862748,1706375440286,-500.0,0.00029899,2]
[312862749,1706375440296,-500.0,0.00029899,2]
[312862750,1706375440305,-500.0,0.00029899,2]
[312862751,1706375440314,-500.0,0.00029899,2]
[312862752,1706375440325,-500.0,0.00029899,2]
[312862754,1706375440335,-500.0,0.00029899,2]
[312862756,1706375440344,-500.0,0.00029899,2]
[312862758,1706375440354,-500.0,0.00029899,2]
[312862759,1706375440364,-523.65030837,0.00029899,2]
[312862760,1706375440374,-500.0,0.00029899,2]
[312862761,1706375440384,-500.0,0.00029899,2]
[312862763,1706375440394,-500.0,0.00029899,2]
[312862764,1706375440404,-500.0,0.00029899,2]
[312862765,1706375440413,-500.0,0.00029899,2]
[312862766,1706375440423,-500.0,0.00029899,2]
[312862767,1706375440433,-500.0,0.00029899,2]
[312862769,1706375440443,-500.0,0.00029899,2]
[312862770,1706375440452,-500.0,0.00029899,2]
[312862772,1706375440462,-500.0,0.00029899,2]
[312862774,1706375440471,-500.0,0.00029899,2]
[312862776,1706375440481,-500.0,0.00029899,2]
[312862778,1706375440493,-500.0,0.00029899,2]
[312862779,1706375440502,-500.0,0.00029899,2]
[312862780,1706375440512,-500.0,0.00029899,2]
[312862781,1706375440522,-500.0,0.00029899,2]
[312862782,1706375440531,-500.0,0.00029899,2]
[312862783,1706375440540,-500.0,0.00029899,2]
[312862784,1706375440550,-500.0,0.00029899,2]
[312862785,1706375440559,-500.0,0.00029899,2]
[312862786,1706375440569,-500.0,0.00029899,2]
[312862787,1706375440578,-548.2,0.00029899,2]
[312862788,1706375440588,-500.0,0.00029899,2]
[312862789,1706375440598,-500.0,0.00029899,2]
[312862790,1706375440607,-500.0,0.00029899,2]
[312862791,1706375440617,-650.0,0.00029899,2]
[312862792,1706375440627,-500.0,0.00029899,2]
[312862793,1706375440636,-250.0,0.00029899,2]
[312862794,1706375440645,-500.0,0.00029899,2]
[312862795,1706375440654,-500.0,0.00029899,2]
[312862796,1706375440664,-491.75386071,0.00029899,2]
[312862797,1706375440674,-500.0,0.00029899,2]
[312862798,1706375440684,-500.0,0.00029899,2]
[312862799,1706375440694,-190.08273826,0.000299,3]
[312862800,1706375440703,-276000.0,0.000299,2]
[312862801,1706375440713,-36643.60519597,0.00029978,4]
[312862802,1706375440723,-239.76670397,0.00029997,2]
[312862803,1706375440732,-2512.042803,0.00029998,2]
[312862804,1706375440742,-5726.50858255,0.0003,2]
[312862805,1706375440752,-244.44828906,0.0003,4]
[312862806,1706375440761,-195.57103754,0.0003,2]
[312862807,1706375440771,-155.01860223,0.0003,4]
[312862808,1706375440780,-155.01860223,0.0003,4]
[312862809,1706375440789,-4577.70352548,0.0003,3]
[312862810,1706375440798,-2322.63899866,0.0003,4]
[312862811,1706375440807,-157.99274934,0.0003,4]
[312862812,1706375440816,-200.82122795,0.0003,4]
[312862813,1706375440826,-155.01860223,0.0003,2]
[312862814,1706375440836,-146331.23431988,0.0003,4]
[312862815,1706375440845,-689.09430435,0.0003,4]
[312862816,1706375440855,-373.0,0.0003,2]
[312862817,1706375440864,-18706.7982674,0.00030002,2]
[312862818,1706375440873,-5000.0,0.00030002,5]
[312862819,1706375440883,-9575.79106476,0.00030019,3]
[312862820,1706375440892,-620.63562914,0.00030076,2]
[312862821,1706375440901,-153.0,0.00030137,2]
[312862822,1706375440910,-153.0,0.00030137,2]
[312862823,1706375440920,-153.0,0.00030137,2]
[312862824,1706375440929,-153.0,0.00030137,2]
[312862825,1706375440938,-153.0,0.00030137,2]
[312862826,1706375440947,-153.0,0.00030137,2]
[312862827,1706375440957,-153.0,0.00030137,2]
[312862828,1706375440966,-164.486678,0.00030137,2]
[312862829,1706375440976,-312.5134984,0.00030137,2]
[312862830,1706375440985,-153.0,0.00030137,2]
[312862831,1706375440994,-153.0,0.00030137,2]
[312862832,1706375441004,-212.0814075,0.00030137,2]
[312862833,1706375441013,-346.061529,0.00030137,2]
[312862834,1706375441023,-158.508265,0.00030137,2]
[312862835,1706375441033,-155.0,0.00030269,2]
[312862836,1706375441042,-155.01860223,0.00030845,2]
[312862837,1706375441051,-151.53182002,0.00030938,2]
[312862838,1706375441060,-161.43393847,0.00031,4]
[312862839,1706375441070,-1175.45652108,0.00031,7]
[312862840,1706375441079,-2803.02756458,0.00031,4]
[312862841,1706375441089,-300.0,0.00031,4]
[312862842,1706375441098,-4292.55674097,0.00031,4]
[312862843,1706375441107,-1027.50463707,0.00031,2]
[312862844,1706375441117,-687.5667328,0.00031,4]
[312862845,1706375441126,-649.86107879,0.00031,4]
[312862846,1706375441135,-408.1017874,0.00031,4]
[312862847,1706375441148,-1827.7377922,0.00031,2]
[312862848,1706375441158,-155.07399689,0.00031,4]
[312862849,1706375441167,-155.34661163,0.00031,4]
[312862850,1706375441177,-195.06700815,0.00031,4]
[312862851,1706375441187,-346.061529,0.00031115,2]
[312862852,1706375441197,-158.508265,0.00031133,2]
[312862853,1706375441206,-620.03178146,0.0003158,2]
[312862854,1706375441215,-155.0,0.00031639,2]
[312862855,1706375441226,-155.01860223,0.00032,4]
[312862856,1706375441236,-155.01860223,0.00032,4]
[312862857,1706375441245,-39131.00414303,0.00032,15]
[312862858,1706375441255,-3138.37234854,0.00032,2]
[312862859,1706375441264,-346.061529,0.00032094,2]
[312862860,1706375441273,-158.508265,0.0003213,2]
[312862861,1706375441359,-173.8,0.00032999,2]
[312862862,1706375441368,-173.8,0.00032999,2]
[312862863,1706375441377,-173.8,0.00032999,2]
[312862864,1706375441387,-173.8,0.00032999,2]
[312862865,1706375441396,-173.8,0.00032999,2]
[312862866,1706375441405,-173.8,0.00032999,2]
[312862867,1706375441414,-173.8,0.00032999,2]
[312862868,1706375441423,-173.8,0.00032999,2]
[312862869,1706375441433,-173.8,0.00032999,2]
[312862870,1706375441443,-173.8,0.00032999,2]
[312862871,1706375441452,-228.50754628,0.00033,2]
[312862872,1706375441461,-16419.31146889,0.00033,5]
[312862873,1706375441478,-5936.01508795,0.00033,5]
[312862874,1706375441487,-304.86419737,0.00033,3]
[312862875,1706375441496,-373.0,0.00033,2]
[312862876,1706375441506,-155.0,0.00033009,2]
[312862877,1706375441515,-346.061529,0.00033072,2]
[312862878,1706375441524,-158.508265,0.00033126,2]
[312862879,1706375441533,-620.00158907,0.00033159,2]
[312862880,1706375441542,-2309.39885449,0.0003342,2]
[312862881,1706375441628,-2111.81572043,0.0003342,2]
[312863149,1706375444035,-153.0,0.00029315,2]
[312863152,1706375444044,-260.25938765,0.0002989,3]
[312864383,1706375695996,155.01860223,0.00021917,4]
[312864384,1706375714456,155.01860223,0.00020075,4]
[312864385,1706375732468,155.01860223,0.00020075,4]
[312864386,1706375750478,155.01860223,0.00020075,4]
[312864388,1706376429623,155.01860223,0.00016998,3]
[312864389,1706376446098,155.01860223,0.00016807,3]
[312864412,1706376632150,-562.04995501,0.00015287,2]
[312864413,1706376632159,-997.69092193,0.00015288,2]
[312864414,1706376632170,-608.60582345,0.00015288,2]